[Event "*** Titled Tuesday Blitz"]
[Site "Chess.com"]
[Date "2019.08.06"]
[Round "2"]
[White "Hanging_pointer"]
[Black "Zq1"]
[Result "1-0"]
[WhiteElo "2445"]
[BlackElo "2589"]
[TimeControl "180+2"]
[EndTime "13:24:35 PDT"]
[Termination "Hanging_pointer won by resignation"]

1. e4 {[%clk 0:03:01.9]} 1... c5 {[%clk 0:03:00.5]} 2. Nf3 {[%clk 0:03:02.9]}
2... d6 {[%clk 0:03:01.6]} 3. d4 {[%clk 0:03:04.3]} 3... cxd4 {[%clk 0:03:02.8]}
4. Nxd4 {[%clk 0:03:06.2]} 4... Nf6 {[%clk 0:03:03.7]} 5. Nc3 {[%clk 0:03:07.7]}
5... Nc6 {[%clk 0:03:04.9]} 6. Bg5 {[%clk 0:03:08.2]} 6... g6 {[%clk 0:03:05.9]}
7. Bxf6 {[%clk 0:03:06.3]} 7... exf6 {[%clk 0:03:07]} 8. Qd2 {[%clk 0:03:07.1]}
8... Bg7 {[%clk 0:03:06.5]} 9. O-O-O {[%clk 0:03:07.2]} 9... O-O {[%clk
0:03:07.3]} 10. Bc4 {[%clk 0:02:41]} 10... Nxd4 {[%clk 0:02:59.3]} 11. Qxd4
{[%clk 0:02:42.9]} 11... f5 {[%clk 0:03:00.4]} 12. Qxd6 {[%clk 0:02:35.8]} 12...
Qxd6 {[%clk 0:02:58.4]} 13. Rxd6 {[%clk 0:02:37.7]} 13... Bxc3 {[%clk
0:02:58.2]} 14. bxc3 {[%clk 0:02:39.6]} 14... fxe4 {[%clk 0:02:59.2]} 15. Re1
{[%clk 0:02:34.4]} 15... Bf5 {[%clk 0:02:57.9]} 16. Bd5 {[%clk 0:02:31.6]} 16...
Rac8 {[%clk 0:02:52.5]} 17. Kb2 {[%clk 0:02:31]} 17... Rc5 {[%clk 0:02:49.7]}
18. Bxe4 {[%clk 0:02:19.6]} 18... Be6 {[%clk 0:02:46]} 19. Rd4 {[%clk
0:02:12.2]} 19... b6 {[%clk 0:02:35.2]} 20. Re3 {[%clk 0:02:00.6]} 20... Rfc8
{[%clk 0:02:34.8]} 21. f4 {[%clk 0:01:49.7]} 21... h5 {[%clk 0:02:33.1]} 22.
Bxg6 {[%clk 0:01:27.5]} 22... fxg6 {[%clk 0:02:24.6]} 23. Rxe6 {[%clk
0:01:28.1]} 23... Rxc3 {[%clk 0:02:25.5]} 24. Rd2 {[%clk 0:01:04.8]} 24... Kf7
{[%clk 0:02:23.3]} 25. Red6 {[%clk 0:01:03.2]} 25... R3c7 {[%clk 0:02:22.7]} 26.
g3 {[%clk 0:00:57.9]} 26... Kg7 {[%clk 0:02:18.9]} 27. Rd7+ {[%clk 0:00:40.4]}
27... Kf6 {[%clk 0:02:19.5]} 28. R7d5 {[%clk 0:00:37.7]} 28... Rc6 {[%clk
0:02:12.6]} 29. Re2 {[%clk 0:00:38.9]} 29... R8c7 {[%clk 0:02:08.7]} 30. Red2
{[%clk 0:00:27.7]} 30... Ke6 {[%clk 0:02:08.4]} 31. Re5+ {[%clk 0:00:27.5]}
31... Kf6 {[%clk 0:02:09.6]} 32. a3 {[%clk 0:00:26.8]} 32... Kf7 {[%clk
0:02:01.5]} 33. Rb5 {[%clk 0:00:27.8]} 33... Rc3 {[%clk 0:01:58.4]} 34. Rb3
{[%clk 0:00:28.5]} 34... R3c4 {[%clk 0:01:59.6]} 35. Re3 {[%clk 0:00:29.1]}
35... R4c5 {[%clk 0:01:56.1]} 36. h3 {[%clk 0:00:27.6]} 36... Rb5+ {[%clk
0:01:57]} 37. Rb3 {[%clk 0:00:27.1]} 37... Rbc5 {[%clk 0:01:57.8]} 38. Rf2
{[%clk 0:00:27.2]} 38... Rc4 {[%clk 0:01:54.8]} 39. g4 {[%clk 0:00:27.3]} 39...
hxg4 {[%clk 0:01:54.2]} 40. hxg4 {[%clk 0:00:29.2]} 40... Re4 {[%clk 0:01:55.2]}
41. Rb4 {[%clk 0:00:24.8]} 41... Re3 {[%clk 0:01:52.4]} 42. f5 {[%clk 0:00:21]}
42... g5 {[%clk 0:01:52.9]} 43. Rh2 {[%clk 0:00:20.3]} 43... Kf6 {[%clk
0:01:46.8]} 44. Rh6+ {[%clk 0:00:20]} 44... Kg7 {[%clk 0:01:43.7]} 45. Rg6+
{[%clk 0:00:18]} 45... Kf7 {[%clk 0:01:44.9]} 46. Rb3 {[%clk 0:00:16.1]} 46...
Re4 {[%clk 0:01:29.8]} 47. Rxg5 {[%clk 0:00:16.9]} 47... Rcc4 {[%clk 0:01:30.8]}
48. Rg3 {[%clk 0:00:12.9]} 48... Re2 {[%clk 0:01:30.5]} 49. Rc3 {[%clk
0:00:12.9]} 49... Rf4 {[%clk 0:01:24.2]} 50. Rg6 {[%clk 0:00:13.1]} 50... Rg2
{[%clk 0:01:22]} 51. Rc7+ {[%clk 0:00:13.7]} 51... Kf8 {[%clk 0:01:21.6]} 52.
Rc8+ {[%clk 0:00:10.5]} 52... Kf7 {[%clk 0:01:22.6]} 53. Rc7+ {[%clk 0:00:12.4]}
53... Kf8 {[%clk 0:01:23.9]} 54. Rd6 {[%clk 0:00:08.5]} 54... Ke8 {[%clk
0:01:21.3]} 55. Re6+ {[%clk 0:00:06.9]} 55... Kd8 {[%clk 0:01:21.1]} 56. Rxa7
{[%clk 0:00:05.3]} 56... Rc4 {[%clk 0:01:21]} 57. Rd6+ {[%clk 0:00:04.4]} 57...
Kc8 {[%clk 0:01:18.2]} 58. Rd3 {[%clk 0:00:04.1]} 58... Rcxc2+ {[%clk
0:01:09.7]} 59. Kb3 {[%clk 0:00:04.8]} 59... Rb2+ {[%clk 0:01:10.8]} 60. Kc4
{[%clk 0:00:04.5]} 60... Rxg4+ {[%clk 0:01:10.9]} 61. Kd5 {[%clk 0:00:05.3]}
61... Rb5+ {[%clk 0:01:06.8]} 62. Ke6 {[%clk 0:00:06.6]} 62... Re4+ {[%clk
0:01:06.9]} 63. Kd6 {[%clk 0:00:03.6]} 63... Rxf5 {[%clk 0:01:03.2]} 64. Rc3+
{[%clk 0:00:03.3]} 64... Kb8 {[%clk 0:01:03.6]} 65. Rcc7 {[%clk 0:00:04.4]}
65... Rf6+ {[%clk 0:00:57.5]} 66. Kd5 {[%clk 0:00:05.9]} 66... Ra4 {[%clk
0:00:57.3]} 67. Rcb7+ {[%clk 0:00:05.9]} 67... Kc8 {[%clk 0:00:57.8]} 68. Rc7+
{[%clk 0:00:07.5]} 68... Kb8 {[%clk 0:00:58]} 69. Rcb7+ {[%clk 0:00:06.1]} 69...
Kc8 {[%clk 0:00:59]} 70. Rxa4 {[%clk 0:00:07.2]} 70... Kxb7 {[%clk 0:00:59.2]}
71. Kc4 {[%clk 0:00:07]} 71... Rf4+ {[%clk 0:00:57.1]} 72. Kb3 {[%clk
0:00:08.3]} 72... Kc6 {[%clk 0:00:56.4]} 73. Rxf4 {[%clk 0:00:08.4]} 1-0

[Event "*** Titled Tuesday Blitz"]
[Site "Chess.com"]
[Date "2019.08.06"]
[Round "2"]
[White "Bigfish1995"]
[Black "ArnaudovP"]
[Result "1-0"]
[WhiteElo "3053"]
[BlackElo "2648"]
[TimeControl "180+2"]
[EndTime "13:24:40 PDT"]
[Termination "Bigfish1995 won by resignation"]

1. d4 {[%clk 0:02:59.6]} 1... Nf6 {[%clk 0:03:00.7]} 2. c4 {[%clk 0:02:59.8]}
2... Nc6 {[%clk 0:03:01.2]} 3. d5 {[%clk 0:02:53.5]} 3... Ne5 {[%clk 0:03:02.1]}
4. Qc2 {[%clk 0:02:46.1]} 4... e6 {[%clk 0:03:02.2]} 5. Nc3 {[%clk 0:02:43.7]}
5... exd5 {[%clk 0:02:58.4]} 6. cxd5 {[%clk 0:02:44.6]} 6... Bb4 {[%clk
0:02:55.3]} 7. a3 {[%clk 0:02:30.1]} 7... Ba5 {[%clk 0:02:48.7]} 8. b4 {[%clk
0:02:19.1]} 8... Bb6 {[%clk 0:02:49.2]} 9. Bf4 {[%clk 0:02:16.4]} 9... Ng6
{[%clk 0:02:45.1]} 10. Bg3 {[%clk 0:02:13.4]} 10... d6 {[%clk 0:02:45.8]} 11. e3
{[%clk 0:02:11.7]} 11... O-O {[%clk 0:02:43.1]} 12. Nf3 {[%clk 0:02:11]} 12...
a5 {[%clk 0:02:43.7]} 13. b5 {[%clk 0:02:10.4]} 13... a4 {[%clk 0:02:44.3]} 14.
Bc4 {[%clk 0:02:06.1]} 14... Ba5 {[%clk 0:02:32.7]} 15. O-O {[%clk 0:02:07.1]}
15... Re8 {[%clk 0:02:27.1]} 16. Nxa4 {[%clk 0:01:55.9]} 16... Ne4 {[%clk
0:02:24.5]} 17. Bd3 {[%clk 0:01:56]} 17... Nf6 {[%clk 0:02:12.3]} 18. Qc4 {[%clk
0:01:39.6]} 18... Bd7 {[%clk 0:02:03.3]} 19. Rfc1 {[%clk 0:01:39.7]} 19... Qe7
{[%clk 0:02:01.4]} 20. Nc3 {[%clk 0:01:28.7]} 20... Ng4 {[%clk 0:01:47]} 21. Qb3
{[%clk 0:00:58.1]} 21... N4e5 {[%clk 0:01:46.1]} 22. Nxe5 {[%clk 0:00:58.6]}
22... Nxe5 {[%clk 0:01:46.8]} 23. Be2 {[%clk 0:00:47.8]} 23... Qf6 {[%clk
0:01:38.7]} 24. Na2 {[%clk 0:00:35.4]} 24... g6 {[%clk 0:01:30.8]} 25. Nb4
{[%clk 0:00:35.1]} 25... h5 {[%clk 0:01:28.1]} 26. h4 {[%clk 0:00:29.6]} 26...
Bg4 {[%clk 0:01:12.2]} 27. Bxg4 {[%clk 0:00:30.6]} 27... Nxg4 {[%clk 0:01:12.9]}
28. Rab1 {[%clk 0:00:28.8]} 28... Bb6 {[%clk 0:01:12.9]} 29. Qc3 {[%clk
0:00:24]} 29... Kg7 {[%clk 0:01:05.1]} 30. Qxf6+ {[%clk 0:00:23.9]} 30... Nxf6
{[%clk 0:01:05.5]} 31. Rb3 {[%clk 0:00:19.9]} 31... Ne4 {[%clk 0:00:56.6]} 32.
Bf4 {[%clk 0:00:20]} 32... Nc5 {[%clk 0:00:45.6]} 33. Rbc3 {[%clk 0:00:21.2]}
33... Na4 {[%clk 0:00:46.5]} 34. R3c2 {[%clk 0:00:20.1]} 34... Nc5 {[%clk
0:00:47.4]} 35. Ra1 {[%clk 0:00:19.1]} 35... Ra4 {[%clk 0:00:41.4]} 36. Rb2
{[%clk 0:00:13.3]} 36... Rea8 {[%clk 0:00:37.9]} 37. f3 {[%clk 0:00:10.3]} 37...
Rxa3 {[%clk 0:00:36.7]} 38. Rxa3 {[%clk 0:00:11.5]} 38... Rxa3 {[%clk
0:00:37.6]} 39. Kf2 {[%clk 0:00:12.6]} 39... Nd3+ {[%clk 0:00:32.8]} 40. Nxd3
{[%clk 0:00:13.1]} 40... Rxd3 {[%clk 0:00:33.7]} 41. Ke2 {[%clk 0:00:14.7]}
41... Rxd5 {[%clk 0:00:34.6]} 42. e4 {[%clk 0:00:14.6]} 42... Rc5 {[%clk
0:00:31.8]} 43. Kd3 {[%clk 0:00:15.4]} 43... Ba5 {[%clk 0:00:30]} 44. Rb3 {[%clk
0:00:16.7]} 44... Bb6 {[%clk 0:00:19.1]} 45. Bd2 {[%clk 0:00:10.5]} 45... Kf8
{[%clk 0:00:15.6]} 46. f4 {[%clk 0:00:11.4]} 46... d5 {[%clk 0:00:15.4]} 47. Bb4
{[%clk 0:00:12.4]} 47... dxe4+ {[%clk 0:00:16.5]} 48. Kxe4 {[%clk 0:00:13.8]}
48... Kg7 {[%clk 0:00:18]} 49. Bxc5 {[%clk 0:00:14.7]} 49... Bxc5 {[%clk
0:00:19.9]} 50. Rc3 {[%clk 0:00:15.3]} 50... b6 {[%clk 0:00:20.9]} 51. Kd5
{[%clk 0:00:15.7]} 51... Bd6 {[%clk 0:00:21.7]} 52. Ke4 {[%clk 0:00:16.5]} 52...
Kf6 {[%clk 0:00:23.1]} 53. Rf3 {[%clk 0:00:15.8]} 53... Ke6 {[%clk 0:00:23.5]}
54. f5+ {[%clk 0:00:17.1]} 54... Kf6 {[%clk 0:00:25.2]} 55. fxg6+ {[%clk
0:00:18.2]} 55... Kxg6 {[%clk 0:00:27.1]} 56. Rc3 {[%clk 0:00:17.3]} 56... f5+
{[%clk 0:00:24.3]} 57. Kd5 {[%clk 0:00:17.6]} 57... Kf6 {[%clk 0:00:24.6]} 58.
Rf3 {[%clk 0:00:11.2]} 58... f4 {[%clk 0:00:23.6]} 59. Ke4 {[%clk 0:00:12.2]}
59... Be5 {[%clk 0:00:24.8]} 60. Rxf4+ {[%clk 0:00:11.5]} 60... Bxf4 {[%clk
0:00:25.7]} 61. Kxf4 {[%clk 0:00:13.4]} 61... Ke6 {[%clk 0:00:23.4]} 62. g4
{[%clk 0:00:12.6]} 62... hxg4 {[%clk 0:00:22.9]} 63. Kxg4 {[%clk 0:00:13.8]}
63... Kf6 {[%clk 0:00:24.1]} 64. Kf4 {[%clk 0:00:12.4]} 64... Kg6 {[%clk
0:00:23.5]} 65. Ke5 {[%clk 0:00:13.7]} 65... Kh5 {[%clk 0:00:25.4]} 66. Kd5
{[%clk 0:00:14.9]} 66... Kxh4 {[%clk 0:00:27.3]} 67. Kc6 {[%clk 0:00:16.3]}
67... Kg5 {[%clk 0:00:29.2]} 68. Kxc7 {[%clk 0:00:17.8]} 68... Kf6 {[%clk
0:00:31.1]} 69. Kxb6 {[%clk 0:00:19.3]} 69... Ke7 {[%clk 0:00:33]} 70. Kc7
{[%clk 0:00:21]} 1-0

[Event "*** Titled Tuesday Blitz"]
[Site "Chess.com"]
[Date "2019.08.06"]
[Round "2"]
[White "AtabayevSaparmyrat"]
[Black "chito89"]
[Result "1/2-1/2"]
[WhiteElo "2617"]
[BlackElo "2829"]
[TimeControl "180+2"]
[EndTime "13:24:41 PDT"]
[Termination "Game drawn by agreement"]

1. d4 {[%clk 0:02:59.9]} 1... d5 {[%clk 0:02:58.8]} 2. c4 {[%clk 0:02:59.9]}
2... dxc4 {[%clk 0:03:00]} 3. e3 {[%clk 0:02:59.8]} 3... Nf6 {[%clk 0:02:59]} 4.
Bxc4 {[%clk 0:03:00.1]} 4... e6 {[%clk 0:03:00.6]} 5. Nf3 {[%clk 0:02:59.2]}
5... a6 {[%clk 0:03:01]} 6. Be2 {[%clk 0:02:48.6]} 6... c5 {[%clk 0:02:59.4]} 7.
O-O {[%clk 0:02:45]} 7... cxd4 {[%clk 0:02:56.4]} 8. Nxd4 {[%clk 0:02:42.1]}
8... Be7 {[%clk 0:02:51.4]} 9. b3 {[%clk 0:02:42.4]} 9... O-O {[%clk 0:02:44.7]}
10. Bb2 {[%clk 0:02:42.9]} 10... e5 {[%clk 0:02:40.8]} 11. Nf3 {[%clk
0:02:38.3]} 11... e4 {[%clk 0:02:41]} 12. Qxd8 {[%clk 0:02:38.7]} 12... Rxd8
{[%clk 0:02:41.4]} 13. Nd4 {[%clk 0:02:37.8]} 13... Bg4 {[%clk 0:02:37.9]} 14.
Bxg4 {[%clk 0:02:34.1]} 14... Nxg4 {[%clk 0:02:39.5]} 15. Nd2 {[%clk 0:02:33.6]}
15... Nf6 {[%clk 0:02:29]} 16. Rfd1 {[%clk 0:02:20.2]} 16... Nbd7 {[%clk
0:02:14.6]} 17. Rac1 {[%clk 0:02:11]} 17... Bf8 {[%clk 0:02:09.8]} 18. Rc7
{[%clk 0:02:02.6]} 18... Nc5 {[%clk 0:02:06.5]} 19. Ba3 {[%clk 0:01:31.7]} 19...
Rd5 {[%clk 0:00:55.9]} 20. Bxc5 {[%clk 0:00:44.3]} 20... Bxc5 {[%clk 0:00:55.9]}
21. Rc1 {[%clk 0:00:30.7]} 21... Bxd4 {[%clk 0:00:52]} 22. Rc8+ {[%clk
0:00:30.4]} 22... Rd8 {[%clk 0:00:52.6]} 23. Rxa8 {[%clk 0:00:31.1]} 23... Rxa8
{[%clk 0:00:54.2]} 24. exd4 {[%clk 0:00:31.3]} 24... Rd8 {[%clk 0:00:55.5]} 25.
Kf1 {[%clk 0:00:24.6]} 25... h5 {[%clk 0:00:54.7]} 26. Ke2 {[%clk 0:00:21.5]}
26... Rxd4 {[%clk 0:00:54.5]} 27. Rc8+ {[%clk 0:00:21.9]} 27... Kh7 {[%clk
0:00:55.6]} 28. Rc7 {[%clk 0:00:23.1]} 28... Nd5 {[%clk 0:00:37.6]} 29. Rxf7
{[%clk 0:00:21.5]} 29... Nc3+ {[%clk 0:00:36.4]} 30. Ke1 {[%clk 0:00:22.5]}
30... b5 {[%clk 0:00:38]} 31. Re7 {[%clk 0:00:20]} 31... b4 {[%clk 0:00:34.3]}
32. Re6 {[%clk 0:00:17.4]} 32... Nxa2 {[%clk 0:00:22.9]} 33. Rxa6 {[%clk
0:00:07.3]} 33... Nc3 {[%clk 0:00:21.4]} 34. Re6 {[%clk 0:00:09.2]} 34... g6
{[%clk 0:00:21.7]} 35. Re7+ {[%clk 0:00:09.6]} 35... Kh6 {[%clk 0:00:21.9]} 36.
Re5 {[%clk 0:00:11.3]} 36... Rd8 {[%clk 0:00:22.8]} 37. Re7 {[%clk 0:00:11]}
37... Kg5 {[%clk 0:00:19.2]} 38. Re5+ {[%clk 0:00:11.4]} 38... Kf6 {[%clk
0:00:20.6]} 39. Ra5 {[%clk 0:00:11.4]} 39... h4 {[%clk 0:00:19.3]} 40. h3 {[%clk
0:00:11.7]} 40... Rd3 {[%clk 0:00:18.8]} 41. Ra6+ {[%clk 0:00:12.6]} 41... Kg7
{[%clk 0:00:19.3]} 42. Rb6 {[%clk 0:00:12.9]} 42... e3 {[%clk 0:00:19.8]} 43.
fxe3 {[%clk 0:00:13.9]} 43... Rxe3+ {[%clk 0:00:21.4]} 44. Kf1 {[%clk
0:00:13.7]} 44... Rd3 {[%clk 0:00:19.6]} 45. Nc4 {[%clk 0:00:13.9]} 45... Nd5
{[%clk 0:00:15.9]} 46. Rb5 {[%clk 0:00:14.3]} 46... Kf6 {[%clk 0:00:14.4]} 47.
Ke2 {[%clk 0:00:15.5]} 47... Nf4+ {[%clk 0:00:15.2]} 48. Kf2 {[%clk 0:00:15.6]}
48... Rxb3 {[%clk 0:00:16.8]} 49. Rb6+ {[%clk 0:00:15.2]} 49... Kg5 {[%clk
0:00:18.1]} 50. Ne3 {[%clk 0:00:14.2]} 50... Nd3+ {[%clk 0:00:12.8]} 51. Ke2
{[%clk 0:00:13]} 51... Ne5 {[%clk 0:00:11.6]} 52. Rb5 {[%clk 0:00:12.4]} 52...
Kf6 {[%clk 0:00:12.7]} 53. Rxb4 {[%clk 0:00:11.3]} 53... Rxb4 {[%clk 0:00:08.2]}
54. Nd5+ {[%clk 0:00:12.5]} 54... Kf5 {[%clk 0:00:09.8]} 55. Nxb4 {[%clk
0:00:14.4]} 55... Kf4 {[%clk 0:00:11.2]} 56. Kf2 {[%clk 0:00:14]} 1/2-1/2

[Event "*** Titled Tuesday Blitz"]
[Site "Chess.com"]
[Date "2019.08.06"]
[Round "2"]
[White "HomayoonTofighi"]
[Black "daro94"]
[Result "1-0"]
[WhiteElo "2823"]
[BlackElo "2697"]
[TimeControl "180+2"]
[EndTime "13:24:42 PDT"]
[Termination "HomayoonTofighi won by resignation"]

1. e4 {[%clk 0:03:01.9]} 1... e5 {[%clk 0:02:59.3]} 2. Nf3 {[%clk 0:03:02.2]}
2... Nc6 {[%clk 0:03:00.6]} 3. Bc4 {[%clk 0:03:03.3]} 3... Bc5 {[%clk
0:03:01.3]} 4. c3 {[%clk 0:03:03.6]} 4... Nf6 {[%clk 0:03:02.4]} 5. d3 {[%clk
0:03:04.5]} 5... d6 {[%clk 0:03:03.2]} 6. Bb3 {[%clk 0:03:05]} 6... a6 {[%clk
0:03:03.1]} 7. Nbd2 {[%clk 0:03:05.9]} 7... O-O {[%clk 0:03:01.3]} 8. h3 {[%clk
0:03:02.1]} 8... Be6 {[%clk 0:03:01.8]} 9. Nf1 {[%clk 0:03:01.8]} 9... Bxb3
{[%clk 0:02:57.6]} 10. axb3 {[%clk 0:03:02]} 10... d5 {[%clk 0:02:56.7]} 11. Qe2
{[%clk 0:03:02.4]} 11... Re8 {[%clk 0:02:57.3]} 12. Ng3 {[%clk 0:03:03]} 12...
h6 {[%clk 0:02:54.3]} 13. O-O {[%clk 0:02:57.1]} 13... Bf8 {[%clk 0:02:44.5]}
14. b4 {[%clk 0:02:50.2]} 14... g6 {[%clk 0:02:40.5]} 15. Be3 {[%clk 0:02:44.2]}
15... Qd7 {[%clk 0:02:35.5]} 16. Rfd1 {[%clk 0:02:41.6]} 16... Rad8 {[%clk
0:02:36.2]} 17. Qc2 {[%clk 0:02:33]} 17... Qe6 {[%clk 0:02:30]} 18. Kh2 {[%clk
0:02:28.9]} 18... Rd7 {[%clk 0:02:09.2]} 19. Qa4 {[%clk 0:02:29.4]} 19... Red8
{[%clk 0:02:03.4]} 20. Re1 {[%clk 0:02:21.2]} 20... dxe4 {[%clk 0:01:48.4]} 21.
dxe4 {[%clk 0:02:23.1]} 21... Qc4 {[%clk 0:01:46.9]} 22. Rac1 {[%clk 0:02:06.4]}
22... Qe6 {[%clk 0:00:57.8]} 23. b5 {[%clk 0:01:59.2]} 23... axb5 {[%clk
0:00:59.7]} 24. Qxb5 {[%clk 0:02:00.5]} 24... b6 {[%clk 0:01:01.2]} 25. b4
{[%clk 0:01:55.4]} 25... Kh7 {[%clk 0:00:58.4]} 26. Ra1 {[%clk 0:01:46.3]} 26...
Bg7 {[%clk 0:00:47]} 27. Qe2 {[%clk 0:01:41.5]} 27... Ne8 {[%clk 0:00:45.8]} 28.
Nd2 {[%clk 0:01:38.1]} 28... Nd6 {[%clk 0:00:45.9]} 29. f3 {[%clk 0:01:30.4]}
29... f5 {[%clk 0:00:42.6]} 30. exf5 {[%clk 0:01:28.2]} 30... gxf5 {[%clk
0:00:44.5]} 31. Nh5 {[%clk 0:01:26.2]} 31... Bh8 {[%clk 0:00:42.5]} 32. f4
{[%clk 0:01:19.2]} 32... e4 {[%clk 0:00:42.3]} 33. Ra3 {[%clk 0:01:11.2]} 33...
Ne7 {[%clk 0:00:40.1]} 34. c4 {[%clk 0:01:08.2]} 34... Ne8 {[%clk 0:00:34]} 35.
g4 {[%clk 0:01:05.4]} 35... Nf6 {[%clk 0:00:30.6]} 36. Ng3 {[%clk 0:00:54.8]}
36... fxg4 {[%clk 0:00:27.6]} 37. Ndxe4 {[%clk 0:00:47]} 37... Nxe4 {[%clk
0:00:26]} 38. Bc1 {[%clk 0:00:42.7]} 38... Nf5 {[%clk 0:00:08.8]} 39. Nxe4
{[%clk 0:00:36.3]} 39... g3+ {[%clk 0:00:07]} 40. Nxg3 {[%clk 0:00:32.9]} 40...
Qxe2+ {[%clk 0:00:06.5]} 41. Rxe2 {[%clk 0:00:32.2]} 41... Nd4 {[%clk
0:00:07.2]} 42. Rea2 {[%clk 0:00:28.7]} 42... Rf8 {[%clk 0:00:06.2]} 43. Kg2
{[%clk 0:00:29]} 43... Ne6 {[%clk 0:00:06.8]} 44. Rf2 {[%clk 0:00:28.5]} 44...
Bd4 {[%clk 0:00:07]} 45. Rf1 {[%clk 0:00:27.9]} 45... c5 {[%clk 0:00:06.8]} 46.
bxc5 {[%clk 0:00:27]} 46... Bxc5 {[%clk 0:00:08.7]} 47. Raf3 {[%clk 0:00:26.3]}
47... Nd4 {[%clk 0:00:09.2]} 48. Rd3 {[%clk 0:00:27.4]} 48... Rg7 {[%clk
0:00:09.7]} 49. Bb2 {[%clk 0:00:23.5]} 49... Rfg8 {[%clk 0:00:08.5]} 50. Bxd4
{[%clk 0:00:20.3]} 50... Bxd4 {[%clk 0:00:09.3]} 51. Rff3 {[%clk 0:00:20.8]}
51... Bc5 {[%clk 0:00:09.4]} 52. Kf1 {[%clk 0:00:22]} 52... Ra8 {[%clk
0:00:09.9]} 53. Rd1 {[%clk 0:00:21.1]} 53... Ra4 {[%clk 0:00:09]} 54. f5 {[%clk
0:00:19.2]} 54... Rxc4 {[%clk 0:00:08.6]} 55. f6 {[%clk 0:00:20.2]} 55... Rf7
{[%clk 0:00:10]} 56. Ne2 {[%clk 0:00:19.6]} 56... Kg6 {[%clk 0:00:08.3]} 57.
Nf4+ {[%clk 0:00:21]} 57... Kxf6 {[%clk 0:00:06.5]} 58. Nd3+ {[%clk 0:00:22.2]}
58... Ke7 {[%clk 0:00:05.3]} 59. Rxf7+ {[%clk 0:00:24.1]} 59... Kxf7 {[%clk
0:00:05]} 60. Ne5+ {[%clk 0:00:25.4]} 60... Ke6 {[%clk 0:00:06.3]} 61. Nxc4
{[%clk 0:00:27.3]} 61... b5 {[%clk 0:00:07.8]} 62. Na5 {[%clk 0:00:27.5]} 62...
Bb6 {[%clk 0:00:07.1]} 63. Nb3 {[%clk 0:00:29.4]} 1-0

[Event "*** Titled Tuesday Blitz"]
[Site "Chess.com"]
[Date "2019.08.06"]
[Round "2"]
[White "enriquetejedor"]
[Black "Mr_Penings"]
[Result "0-1"]
[WhiteElo "2568"]
[BlackElo "2495"]
[TimeControl "180+2"]
[EndTime "13:24:47 PDT"]
[Termination "Mr_Penings won by checkmate"]

1. e4 {[%clk 0:03:00.7]} 1... c5 {[%clk 0:03:00.9]} 2. Nc3 {[%clk 0:03:00.5]}
2... a6 {[%clk 0:03:01.8]} 3. g3 {[%clk 0:03:02.4]} 3... b5 {[%clk 0:03:02.8]}
4. Bg2 {[%clk 0:03:03.8]} 4... Bb7 {[%clk 0:03:04.1]} 5. Nh3 {[%clk 0:03:05]}
5... b4 {[%clk 0:02:45]} 6. Nd5 {[%clk 0:03:03.5]} 6... e6 {[%clk 0:02:44.5]} 7.
Ne3 {[%clk 0:03:03.3]} 7... Nf6 {[%clk 0:02:42.5]} 8. d3 {[%clk 0:03:03]} 8...
d5 {[%clk 0:02:31.4]} 9. e5 {[%clk 0:03:03.5]} 9... Nfd7 {[%clk 0:02:30]} 10. f4
{[%clk 0:03:04.7]} 10... g6 {[%clk 0:02:27.2]} 11. O-O {[%clk 0:03:02.9]} 11...
Bg7 {[%clk 0:02:17.5]} 12. c4 {[%clk 0:02:41]} 12... bxc3 {[%clk 0:02:16]} 13.
bxc3 {[%clk 0:02:35.5]} 13... Nc6 {[%clk 0:02:04.1]} 14. Rb1 {[%clk 0:02:36.1]}
14... Rb8 {[%clk 0:02:04.6]} 15. g4 {[%clk 0:01:59]} 15... h6 {[%clk 0:01:24.2]}
16. d4 {[%clk 0:01:52.3]} 16... Ba8 {[%clk 0:00:49.4]} 17. Rxb8 {[%clk 0:01:50]}
17... Qxb8 {[%clk 0:00:51.3]} 18. f5 {[%clk 0:01:49.7]} 18... Qb6 {[%clk
0:00:43]} 19. fxg6 {[%clk 0:01:28.9]} 19... fxg6 {[%clk 0:00:43.6]} 20. Nc2
{[%clk 0:01:30.3]} 20... cxd4 {[%clk 0:00:36.2]} 21. cxd4 {[%clk 0:01:31.7]}
21... Ndxe5 {[%clk 0:00:35]} 22. Kh1 {[%clk 0:01:27]} 22... Nf7 {[%clk
0:00:30.8]} 23. Nf4 {[%clk 0:01:23.3]} 23... Ne7 {[%clk 0:00:28.7]} 24. Ba3
{[%clk 0:01:22.8]} 24... Rf8 {[%clk 0:00:18.9]} 25. Bxe7 {[%clk 0:01:21.5]}
25... Kxe7 {[%clk 0:00:18.4]} 26. Nxg6+ {[%clk 0:01:22.9]} 26... Ke8 {[%clk
0:00:19.9]} 27. Nxf8 {[%clk 0:01:24.1]} 27... Bxf8 {[%clk 0:00:20.5]} 28. Qf3
{[%clk 0:01:24.8]} 28... Qc7 {[%clk 0:00:21.6]} 29. Ne3 {[%clk 0:01:23.2]} 29...
Bd6 {[%clk 0:00:20.6]} 30. Qf6 {[%clk 0:01:21.3]} 30... Qe7 {[%clk 0:00:18.7]}
31. Qxe7+ {[%clk 0:01:14.8]} 31... Kxe7 {[%clk 0:00:20.6]} 32. Re1 {[%clk
0:01:09.9]} 32... Kd7 {[%clk 0:00:19.9]} 33. Bf1 {[%clk 0:00:58.6]} 33... a5
{[%clk 0:00:18]} 34. Bb5+ {[%clk 0:00:59]} 34... Kc7 {[%clk 0:00:19.4]} 35. Rc1+
{[%clk 0:00:58.7]} 35... Kb6 {[%clk 0:00:20.2]} 36. a4 {[%clk 0:01:00.2]} 36...
e5 {[%clk 0:00:20.5]} 37. Nf5 {[%clk 0:00:59.8]} 37... Ba3 {[%clk 0:00:15.4]}
38. Rc8 {[%clk 0:00:59.9]} 38... Bb7 {[%clk 0:00:16.7]} 39. Rh8 {[%clk
0:00:56.8]} 39... exd4 {[%clk 0:00:14.6]} 40. Rh7 {[%clk 0:00:53.2]} 40... Ng5
{[%clk 0:00:11]} 41. Rxh6+ {[%clk 0:00:53.6]} 41... Kc5 {[%clk 0:00:10.8]} 42.
Nd6 {[%clk 0:00:47.7]} 42... Ba8 {[%clk 0:00:08.6]} 43. h4 {[%clk 0:00:48.7]}
43... Ne4 {[%clk 0:00:08.5]} 44. Ne8 {[%clk 0:00:36.6]} 44... Nf2+ {[%clk
0:00:06.3]} 45. Kg2 {[%clk 0:00:38]} 45... Nxg4 {[%clk 0:00:08.2]} 46. Ra6
{[%clk 0:00:32.8]} 46... Bb7 {[%clk 0:00:08.5]} 47. Rxa5 {[%clk 0:00:33.6]}
47... Kb6 {[%clk 0:00:07.4]} 48. Bd7 {[%clk 0:00:03.7]} 48... Ne3+ {[%clk
0:00:07.5]} 49. Kf3 {[%clk 0:00:05.1]} 49... Kxa5 {[%clk 0:00:09.4]} 50. h5
{[%clk 0:00:06.6]} 50... Bf8 {[%clk 0:00:07]} 51. Nf6 {[%clk 0:00:04.6]} 51...
Nc4 {[%clk 0:00:05.8]} 52. Ke2 {[%clk 0:00:04]} 52... Bh6 {[%clk 0:00:04.7]} 53.
Ng4 {[%clk 0:00:04.2]} 53... Bf8 {[%clk 0:00:04.7]} 54. h6 {[%clk 0:00:05.6]}
54... Nd6 {[%clk 0:00:04.7]} 55. h7 {[%clk 0:00:06.1]} 55... Bg7 {[%clk
0:00:06]} 56. Nh6 {[%clk 0:00:03.9]} 56... Ba6+ {[%clk 0:00:07.2]} 57. Kd1
{[%clk 0:00:04.5]} 57... d3 {[%clk 0:00:05.1]} 58. Ng4 {[%clk 0:00:05.3]} 58...
Kb4 {[%clk 0:00:05.5]} 59. Ne3 {[%clk 0:00:06.2]} 59... Ne4 {[%clk 0:00:05.1]}
60. Bb5 {[%clk 0:00:04.5]} 60... Bc8 {[%clk 0:00:03.4]} 61. Nxd5+ {[%clk
0:00:05.5]} 61... Kc5 {[%clk 0:00:02.9]} 62. Ne7 {[%clk 0:00:05.6]} 62... Bg4+
{[%clk 0:00:03]} 63. Ke1 {[%clk 0:00:04.2]} 63... d2+ {[%clk 0:00:04]} 64. Kf1
{[%clk 0:00:05.9]} 64... d1=Q+ {[%clk 0:00:05.9]} 65. Kg2 {[%clk 0:00:07.8]}
65... Qf3+ {[%clk 0:00:07.4]} 66. Kh2 {[%clk 0:00:09]} 66... Qg3+ {[%clk
0:00:08.7]} 67. Kh1 {[%clk 0:00:10.2]} 67... Nf2# {[%clk 0:00:10.6]} 0-1